Cogmind - Beta 9.4 @@@ ROGUE MODE // 2020.03.20 @ 16:43:50 Player: Pimski Result: Destroyed by Executioner with Helical Railgun Performance ------------- Evolutions (9) 4500 Regions Visited (34) 6800 Robots Destroyed (174) 870 Value Destroyed (5562) 5562 Prototype IDs (71) 1420 Alien Tech Used (0) 0 Bonus (10600) 10600 TOTAL SCORE: 29752 Bonus ------- Triggered Max Security 1000 High Alert Combat Kills 58 Follower Combat Kills 1542 Entered Garrisons 2200 Used RIF Installer 5500 Aligned with FarCom 300 Cogmind --------- Core Integrity 0/1600 Matter 300/300 Energy 45/100 System Corruption 13% Temperature Cool (0) Movement Core (50) Location -1/Command Parts ------- > --- POWER (1) -------- (None) > --- PROPULSION (4) --- (None) > --- UTILITY (18) ----- Advanced Visual Processing Unit Relay Coupler [C] (64) Relay Coupler [C] (61) Relay Coupler [C] (49) Relay Coupler [C] (30) Relay Coupler [C] (58) Relay Coupler [C] (54) Relay Coupler [C] (44) Relay Coupler [Specialist] (26) Relay Coupler [Hunter] (31) > --- WEAPON (2) ------- (None) > --- INVENTORY (4) ---- Inertial Stasis Machine Quantum Shading Machine Relay Coupler [C] (32) Relay Coupler [Demolisher] (37) Peak State ------------ > --- POWER ------------ Improved Quantum Reactor > --- PROPULSION ------- Cooled Cesium-ion Thruster Cooled Nuclear Pulse Thruster Cooled Nuclear Pulse Thruster Cooled Nuclear Pulse Thruster > --- UTILITY ---------- Lightpack 2.0 Quantum Shading Machine Improved Stasis Canceller Experimental Propulsion Shielding Experimental Utility Shielding Advanced Hacking Suite Advanced Hacking Suite Experimental Hacking Suite Advanced System Shield Relay Coupler [C] Relay Coupler [C] Relay Coupler [C] Relay Coupler [C] Relay Coupler [Sentry] Relay Coupler [Sentry] Relay Coupler [Hunter] Relay Coupler [Behemoth] > --- WEAPON ----------- Advanced Datajack Power Sword > --- INVENTORY -------- Light Particle Reactor Light Quantum Reactor Light Quantum Reactor Cooled Cesium-ion Thruster Cooled Nuclear Pulse Thruster Cooled Q-thruster Cooled Q-thruster Cooled Q-thruster Cooled Q-thruster Cooled Q-thruster Gravity Neutralizing Apparatus Inertial Stasis Machine Advanced Visual Processing Unit Experimental Utility Shielding Experimental Utility Shielding Relay Coupler [Sentry] Relay Coupler [Demolisher] Relay Coupler [Demolisher] Relay Coupler [Specialist] Relay Coupler [Specialist] Improved Remote Datajack Enhanced Force Lance [Rating: 191] Favorites ----------- Power Light Angular Momentum Engine Engine Light Angular Momentum Engine Power Core Micro Fission Core Reactor Light Quantum Reactor Propulsion Light Treads Treads Light Treads Leg Aluminum Leg Wheel Compact Wheel Flight Unit Improved Flight Unit Utility High-capacity Storage Unit Device Long-range Sensor Array Storage High-capacity Storage Unit Processor Transport Network Coupler Hackware Improved Hacking Suite Protection Experimental Utility Shielding Weapon Improved Assault Rifle Energy Gun Small Laser Ballistic Gun Improved Assault Rifle Launcher Rocket Launcher Special Weapon Improved Remote Datajack Impact Weapon Heavy Flail Slashing Weapon Chainsword Piercing Weapon Lance Special Melee Weapon Datajack Build | -11 -10 -10 -9 -9 -9 -8 -8 -8 -8 -8 -7 -7 -7 -7 -6 -6 -6 -6 -5 -5 -5 -5 -4 -4 -4 -4 -3 -3 -2 -2 -1 -1 -1 -1 ------- Run | Scr Mat Min Mat Min Exi Min Mat Gar Mat Gar Fac Gar Fac Gar Fac Was Fac Gar Fac Was Fac Gar Fac Gar Fac Gar Res Gar Res Gar Acc Gar Acc Com Slots Evolved 18 | . . . 2 . . . 2 . . . 2 . . . 2 . . . 2 . . . 2 . . . 2 . 2 . 2 . . . Power . | . . . . . . . . . . . . . . . . . . . . . . . . . . . . . . . . . . . Propulsion 2 | . . . . . . . . . . . 2 . . . . . . . . . . . . . . . . . . . . . . . Utility 16 | . . . 2 . . . 2 . . . . . . . 2 . . . 2 . . . 2 . . . 2 . 2 . 2 . . . Weapon . | . . . . . . . . . . . . . . . . . . . . . . . . . . . . . . . . . . . Parts Attached 257 | 2 2 14 29 2 4 2 12 4 12 7 22 3 11 . 10 . 6 . 22 . 13 . 8 3 9 2 7 6 9 3 7 8 13 5 Power 28 | . . 1 4 . . . 2 1 2 . 1 1 1 . 1 . . . 2 . 1 . 1 . . . 1 2 1 . . 1 3 2 Engine 11 | . . . 4 . . . 1 . 2 . 1 1 1 . 1 . . . . . . . . . . . . . . . . . . . Core 8 | . . 1 . . . . 1 1 . . . . . . . . . . 2 . 1 . 1 . . . 1 . . . . . . . Reactor 9 | . . . . . . . . . . . . . . . . . . . . . . . . . . . . 2 1 . . 1 3 2 Propulsion 61 | . . 5 8 . . 1 1 . 4 2 7 . 3 . 2 . 3 . 7 . 3 . 3 . 1 . 1 1 3 . 2 1 2 1 Treads 21 | . . 3 7 . . 1 1 . 4 2 3 . . . . . . . . . . . . . . . . . . . . . . . Leg . | . . . . . . . . . . . . . . . . . . . . . . . . . . . . . . . . . . . Wheel 2 | . . 2 . . . . . . . . . . . . . . . . . . . . . . . . . . . . . . . . Hover . | . . . . . . . . . . . . . . . . . . . . . . . . . . . . . . . . . . . Flight 38 | . . . 1 . . . . . . . 4 . 3 . 2 . 3 . 7 . 3 . 3 . 1 . 1 1 3 . 2 1 2 1 Utility 106 | 1 1 1 4 . 1 . 6 . 4 . 11 . 4 . 6 . 3 . 8 . 8 . 3 3 7 2 4 3 5 3 4 6 6 2 Device 28 | . . . 1 . . . 1 . . . 2 . 1 . 1 . 1 . . . 4 . 1 3 4 2 1 2 2 . 1 . . 1 Storage 9 | 1 1 1 . . 1 . 2 . 1 . 2 . . . . . . . . . . . . . . . . . . . . . . . Processor 6 | . . . 2 . . . 1 . . . 1 . . . 1 . . . . . . . . . . . . . . . . . 1 . Hackware 42 | . . . . . . . . . . . 4 . 2 . 4 . . . 6 . 2 . 2 . 2 . 3 . 2 3 3 5 4 . Protection 21 | . . . 1 . . . 2 . 3 . 2 . 1 . . . 2 . 2 . 2 . . . 1 . . 1 1 . . 1 1 1 Artifact . | . . . . . . . . . . . . . . . . . . . . . . . . . . . . . . . . . . . Weapon 62 | 1 1 7 13 2 3 1 3 3 2 5 3 2 3 . 1 . . . 5 . 1 . 1 . 1 . 1 . . . 1 . 2 . Energy Gun 6 | 1 1 . 4 . . . . . . . . . . . . . . . . . . . . . . . . . . . . . . . Energy Cannon . | . . . . . . . . . . . . . . . . . . . . . . . . . . . . . . . . . . . Ballistic Gun 24 | . . 5 7 1 1 1 2 2 2 3 . . . . . . . . . . . . . . . . . . . . . . . . Ballistic Cannon . | . . . . . . . . . . . . . . . . . . . . . . . . . . . . . . . . . . . Launcher 11 | . . 2 2 1 1 . 1 1 . 2 . 1 . . . . . . . . . . . . . . . . . . . . . . Special Weapon 5 | . . . . . . . . . . . . . 1 . . . . . 2 . . . 1 . . . . . . . . . 1 . Impact Weapon 1 | . . . . . . . . . . . 1 . . . . . . . . . . . . . . . . . . . . . . . Slashing Weapon 8 | . . . . . . . . . . . 1 1 2 . 1 . . . 1 . . . . . 1 . 1 . . . . . . . Piercing Weapon 4 | . . . . . . . . . . . . . . . . . . . 2 . 1 . . . . . . . . . . . 1 . Special Melee Weapon 3 | . . . . . 1 . . . . . 1 . . . . . . . . . . . . . . . . . . . 1 . . . Unidentified Prototypes 3 | . . . 2 . . . . . 1 . . . . . . . . . . . . . . . . . . . . . . . . . Parts Lost 48 | . 1 4 7 . . 1 3 . 1 . . 2 . . . . 2 . . . . . . . . 1 . 1 . . 1 . 7 17 Power 10 | . . 1 1 . . . 1 . . . . 1 . . . . . . . . . . . . . . . 1 . . . . 2 3 Propulsion 12 | . . . 1 . . 1 1 . 1 . . . . . . . . . . . . . . . . . . . . . 1 . 2 5 Utility 12 | . . . 1 . . . . . . . . . . . . . 2 . . . . . . . . . . . . . . . 1 8 Weapon 14 | . 1 3 4 . . . 1 . . . . 1 . . . . . . . . . . . . . 1 . . . . . . 2 1 Highest Loss Streak 17 | . 1 2 3 . . 1 3 . 1 . . 2 . . . . 2 . . . . . . . . 1 . 1 . . 1 . 3 17 Average Slot Usage (%) 95 | . 100 99 95 100 100 99 97 100 100 100 93 87 90 92 92 93 92 86 91 94 93 94 92 94 94 92 94 95 91 95 96 96 94 89 Engine 4 | . 14 3 10 11 11 11 6 2 2 9 6 7 6 7 6 6 6 6 1 . . . . . . . . . . . . . . . Core 2 | . . 10 . . . . 2 7 6 . . . . . . . . . 3 5 5 5 5 5 5 5 4 . . . . . . . Treads 9 | . . 20 22 22 22 21 17 18 18 18 15 . . . . . . . . . . . . . . . . . . . . . . . Leg 1 | . 28 6 . . . . . . . . . . . . . . . . . . . . . . . . . . . . . . . . Flight 11 | . . . . . . . . . . . 14 30 29 30 26 26 26 26 23 23 22 23 18 21 21 21 19 19 17 17 16 16 16 15 Device 1 | . . . 4 . . . 1 . . . . 7 . 7 1 . . 6 1 . . 5 5 10 5 10 4 9 5 8 5 8 . . Storage 17 | . 28 28 22 22 26 33 32 36 36 36 19 7 7 7 6 6 6 6 5 5 5 5 5 5 5 5 4 4 4 4 4 4 4 3 Processor 3 | . . . 13 22 17 11 8 . . . 2 . . . 2 . . . . . . . . . . . . . . . . . 3 4 Hackware 19 | . . . . . . . . . . . 7 15 27 15 34 40 37 20 38 41 41 35 42 36 41 36 46 42 45 47 54 48 55 55 Protection 6 | . . . 1 . . . 9 18 18 18 8 7 1 7 . . 1 13 5 5 3 5 5 5 5 5 4 4 4 4 4 8 4 3 Ballistic Gun 9 | . 14 26 14 20 17 22 17 17 18 17 7 . . . . . . . . . . . . . . . . . . . . . . . Special Weapon 1 | . . . . . . . . . . . . . 4 7 6 6 5 . . . . . 4 5 5 5 4 4 4 4 . . . . Slashing Weapon 2 | . . . . . . . . . . . . 4 8 7 6 6 6 6 4 5 5 5 . . 5 3 4 4 4 4 4 4 2 . Naked Turns . | . . . . . . . . . . . . . . . . . . . . . . . . . . . . . . . . . . . Heaviest Build 128 | 16 44 73 80 73 82 81 128 128 126 123 123 20 22 22 24 20 24 21 21 17 25 17 20 21 20 18 20 25 33 33 33 33 33 29 Greatest Support 80 | 20 20 40 40 40 40 40 40 40 40 40 80 33 24 33 24 24 31 26 28 28 29 38 39 58 45 57 29 39 33 65 34 71 52 56 Greatest Overweight (x) 4 | . 2 4 3 1 2 2 3 3 3 3 1 . . . . . . . . . . . . . . . . . . . . . . . Average Overweight (x) . | . . 1 1 1 1 2 2 3 2 3 . . . . . . . . . . . . . . . . . . . . . . . . Largest Inventory Capacity 52 | 8 14 20 20 20 24 24 32 32 32 32 52 24 24 24 24 24 24 24 24 24 24 24 24 24 24 24 24 24 24 24 24 24 24 24 Average Capacity 24 | 6 11 17 20 20 21 24 29 32 32 32 28 24 24 24 24 24 24 24 24 24 24 24 24 24 24 24 24 24 24 24 24 24 24 23 Most Carried 32 | 6 14 14 20 20 24 24 32 32 32 32 32 24 24 24 24 24 24 23 24 24 24 24 24 24 24 24 24 24 24 24 24 24 24 19 Average Carried 23 | 6 10 13 16 20 21 23 28 32 31 31 27 23 23 23 23 24 23 23 23 23 23 24 23 23 23 23 22 23 22 23 23 20 21 17 Final Capacity 32 | 8 14 20 20 20 24 24 32 32 32 32 24 24 24 24 24 24 24 24 24 24 24 24 24 24 24 24 24 24 24 24 24 24 24 4 Final Carried 32 | 6 14 14 20 20 24 24 32 32 32 32 22 23 23 24 24 24 23 23 24 24 24 24 24 24 24 23 24 23 24 23 24 24 18 4 Class Distribution -------------------- 38% | Hauler-Mutant 26% | Wizard-Sprinter 9% | Hacker-Sprinter 8% | Botlord-Sprinter 8% | Scavenger-Mutant 4% | Mutant 3% | Hauler-Sprinter Dominant Class ---------------- Mutant | -10/Materials Hauler-Mutant | -10/Mines Hauler-Mutant | -9/Materials Scavenger-Mutant | -9/Mines Scavenger-Mutant | -9/Exiles Hauler-Mutant | -8/Mines Hauler-Mutant | -8/Materials Hauler-Mutant | -8/Garrison Hauler-Mutant | -8/Materials Hauler-Mutant | -8/Garrison Hauler-Mutant | -7/Factory Hauler-Sprinter | -7/Garrison Hacker-Sprinter | -7/Factory Hauler-Sprinter | -7/Garrison Wizard-Sprinter | -6/Factory Wizard-Sprinter | -6/Waste Wizard-Sprinter | -6/Factory Hacker-Sprinter | -6/Garrison Wizard-Sprinter | -5/Factory Wizard-Sprinter | -5/Waste Wizard-Sprinter | -5/Factory Wizard-Sprinter | -5/Garrison Wizard-Sprinter | -4/Factory Wizard-Sprinter | -4/Garrison Wizard-Sprinter | -4/Factory Wizard-Sprinter | -4/Garrison Wizard-Sprinter | -3/Research Wizard-Sprinter | -3/Garrison Wizard-Sprinter | -2/Research Botlord-Sprinter | -2/Garrison Botlord-Sprinter | -1/Access Botlord-Sprinter | -1/Garrison Botlord-Sprinter | -1/Access Commander-Sprinter | -1/Command Resources | -11 -10 -10 -9 -9 -9 -8 -8 -8 -8 -8 -7 -7 -7 -7 -6 -6 -6 -6 -5 -5 -5 -5 -4 -4 -4 -4 -3 -3 -2 -2 -1 -1 -1 -1 ----------- Run | Scr Mat Min Mat Min Exi Min Mat Gar Mat Gar Fac Gar Fac Gar Fac Was Fac Gar Fac Was Fac Gar Fac Gar Fac Gar Res Gar Res Gar Acc Gar Acc Com Matter Collected 4665 | 216 56 205 477 39 38 51 571 184 585 269 356 . 96 . 264 . 15 . 288 20 130 . 87 . 135 . 105 . 109 . 120 105 144 . Remotely . | . . . . . . . . . . . . . . . . . . . . . . . . . . . . . . . . . . . Salvage Created 7710 | 64 140 229 1389 58 . 51 794 275 1114 386 600 43 96 . 798 . 117 . 269 . 128 . . . 242 . 270 . 187 . 264 . 196 . Parts 354 | 4 16 18 57 2 . 4 40 24 54 30 30 5 3 . 17 . 2 . 8 . 3 . . . 7 . 9 . 4 . 14 . 3 . Haulers Intercepted 24 | . 1 . 4 . . . 2 . 3 . 3 . . . 4 . 1 . . . . . . . 1 . . . 2 . 1 . 2 . Recyclers Shooed 17 | . 1 1 6 . . . 3 . 4 . . . . . . . . . 1 . . . . . 1 . . . . . . . . . Parts Field Recycled . | . . . . . . . . . . . . . . . . . . . . . . . . . . . . . . . . . . . Retrieved Matter . | . . . . . . . . . . . . . . . . . . . . . . . . . . . . . . . . . . . Parts Self-Destructed . | . . . . . . . . . . . . . . . . . . . . . . . . . . . . . . . . . . . Prevented . | . . . . . . . . . . . . . . . . . . . . . . . . . . . . . . . . . . . Kills | -11 -10 -10 -9 -9 -9 -8 -8 -8 -8 -8 -7 -7 -7 -7 -6 -6 -6 -6 -5 -5 -5 -5 -4 -4 -4 -4 -3 -3 -2 -2 -1 -1 -1 -1 ------- Run | Scr Mat Min Mat Min Exi Min Mat Gar Mat Gar Fac Gar Fac Gar Fac Was Fac Gar Fac Was Fac Gar Fac Gar Fac Gar Res Gar Res Gar Acc Gar Acc Com Combat Hostiles Destroyed 100 | . 6 10 23 2 . 1 9 12 11 14 5 4 1 . 2 . . . . . . . . . . . . . . . . . . . Melee 3 | . . . . . . . . . . . . . 1 . 2 . . . . . . . . . . . . . . . . . . . Guns 66 | . 6 5 16 1 . 1 6 6 11 9 5 . . . . . . . . . . . . . . . . . . . . . . . AOE 31 | . . 5 7 1 . . 3 6 . 5 . 4 . . . . . . . . . . . . . . . . . . . . . . Classes Destroyed 15 | 1 3 1 4 . . 1 3 . . . 1 . . . . . . . . . . . . . . . 1 . . . . . . . Worker 10 | . 1 1 1 . . . 2 . 4 . . . 1 . . . . . . . . . . . . . . . . . . . . . Builder 1 | . . . . . . . 1 . . . . . . . . . . . . . . . . . . . . . . . . . . . Tunneler 1 | . . . . . . . . . . . . . . . . . . . . . . . . . . . 1 . . . . . . . Hauler 24 | . 1 . 4 . . . 2 . 3 . 3 . . . 4 . 1 . . . . . . . 1 . . . 2 . 1 . 2 . Recycler 24 | 1 . . 5 . . . 2 . 4 . 2 . 1 . 2 . . . 2 . 1 . . . 1 . 2 . . . 1 . . . Mechanic 1 | . . . . . . . 1 . . . . . . . . . . . . . . . . . . . . . . . . . . . Operator 6 | . . . 2 . . . . . 1 . 2 . . . 1 . . . . . . . . . . . . . . . . . . . Watcher 7 | . . . . . . . 3 . 2 . 1 . . . . . . . . . . . . . . . . . . . 1 . . . Swarmer 38 | . 6 6 7 . . . . 7 . 7 . 4 1 . . . . . . . . . . . . . . . . . . . . . Grunt 41 | . . 4 12 2 . . 6 5 5 3 2 . . . 2 . . . . . . . . . . . . . . . . . . . Brawler 1 | . . . 1 . . . . . . . . . . . . . . . . . . . . . . . . . . . . . . . Duelist 2 | . . . 1 . . . . . 1 . . . . . . . . . . . . . . . . . . . . . . . . . Sentry 12 | . . . 2 . . . 2 . 4 3 1 . . . . . . . . . . . . . . . . . . . . . . . Hunter 5 | . . . . . . 1 1 . 1 1 1 . . . . . . . . . . . . . . . . . . . . . . . Programmer 1 | . . . . . . . . . . . 1 . . . . . . . . . . . . . . . . . . . . . . . Best Kill Streak 11 | 1 3 3 11 2 . 1 5 6 6 4 8 4 1 . 2 . 1 . 2 . 1 . . . 1 . 1 . 1 . 1 . 1 . Combat Bots Only 7 | . 3 3 7 2 . 1 4 6 2 4 2 4 1 . 2 . . . . . . . . . . . . . . . . . . . Max Kills in Single Turn 3 | 1 1 2 3 1 . 1 3 2 2 2 1 3 1 . 1 . 1 . 1 . 1 . . . 1 . 1 . 1 . 1 . 1 . Gunslinging 1 | . . . . . . . . . . 1 . . . . . . . . . . . . . . . . . . . . . . . . Exploded 3 | . . 2 3 1 . . 2 2 . 2 . 3 . . . . . . . . . . . . . . . . . . . . . . Melee 1 | . . . . . . . . . . . . . 1 . 1 . . . . . . . . . . . . . . . . . . . Uniques/NPCs Destroyed . | . . . . . . . . . . . . . . . . . . . . . . . . . . . . . . . . . . . Combat | -11 -10 -10 -9 -9 -9 -8 -8 -8 -8 -8 -7 -7 -7 -7 -6 -6 -6 -6 -5 -5 -5 -5 -4 -4 -4 -4 -3 -3 -2 -2 -1 -1 -1 -1 -------- Run | Scr Mat Min Mat Min Exi Min Mat Gar Mat Gar Fac Gar Fac Gar Fac Was Fac Gar Fac Was Fac Gar Fac Gar Fac Gar Res Gar Res Gar Acc Gar Acc Com Damage Taken 10896 | . 272 649 1216 162 . 126 489 221 658 394 628 431 122 197 97 . 65 56 123 . 211 117 165 . 41 127 369 413 78 42 141 95 1016 2175 Core 2963 | . 25 105 203 22 . . 82 18 41 60 40 129 58 99 56 . 35 . 24 . 55 43 16 . . . 65 174 . . 22 . 405 1186 Absorbed by Shields 512 | . . . . . . . . 18 . . . 100 . 35 . . . . . . . 31 . . . 4 . 36 . . . . . 288 Core Remaining (%) 76 | 100 . 48 . . . 43 . . . 63 . . . 53 . . . 89 . . . 87 . . . 98 . 81 . 100 . . . . Volleys Fired 409 | 5 32 33 92 7 . 4 56 18 84 24 31 2 2 . 4 . 1 . 4 . . . 1 . 5 . . . 2 . . . 2 . Largest 2 | 2 2 2 2 2 . 2 2 2 2 2 2 1 1 . 1 . 1 . 1 . . . 1 . 1 . . . 1 . . . 1 . Hottest 76 | 60 70 40 76 46 . 46 51 51 51 46 46 39 30 . 30 . 30 . 40 . . . 40 . 40 . . . 40 . . . 40 . Shots Fired 770 | 10 64 62 178 12 . 8 108 32 168 43 62 2 2 . 4 . 1 . 4 . . . 1 . 5 . . . 2 . . . 2 . Gun 722 | 10 64 58 171 10 . 8 105 28 168 38 62 . . . . . . . . . . . . . . . . . . . . . . . Cannon . | . . . . . . . . . . . . . . . . . . . . . . . . . . . . . . . . . . . Launcher 27 | . . 4 7 2 . . 3 4 . 5 . 2 . . . . . . . . . . . . . . . . . . . . . . Special 21 | . . . . . . . . . . . . . 2 . 4 . 1 . 4 . . . 1 . 5 . . . 2 . . . 2 . Kinetic 638 | 5 32 58 124 10 . 8 105 28 168 38 62 . . . . . . . . . . . . . . . . . . . . . . . Thermal 79 | . 32 . 47 . . . . . . . . . . . . . . . . . . . . . . . . . . . . . . . Explosive 27 | . . 4 7 2 . . 3 4 . 5 . 2 . . . . . . . . . . . . . . . . . . . . . . Electromagnetic 5 | 5 . . . . . . . . . . . . . . . . . . . . . . . . . . . . . . . . . . Robot Hit Streak 32 | 7 8 11 27 32 . 7 13 9 27 12 20 1 1 . 5 . . . 4 . . . 5 . 10 . . . 12 . . . 14 . Robot Miss Streak 5 | 3 5 3 4 1 . 1 2 3 3 5 2 1 1 . . . 1 . . . . . . . . . . . . . . . . . Penetration Max 1 | . . . . . . . 1 1 . . . . . . . . . . . . . . . . . . . . . . . . . . Secondary Targets 4 | . . 2 . . . . . . 1 1 . . . . . . . . . . . . . . . . . . . . . . . . Max Gunslinging Chain 1 | . . 1 . . . . . . 1 1 . . . . . . . . . . . . . . . . . . . . . . . . Shots Hit Robots 658 | 7 26 37 141 7 4 7 85 25 129 27 61 1 9 . 31 . 3 . 7 . 2 . 1 . 8 . 6 . 6 . 14 . 14 . Core Hits 300 | 3 12 22 65 4 . 3 39 17 42 31 23 6 3 . 12 . 1 . 2 . 1 . . . 2 . 4 . 2 . 4 . 2 . Critical Hits 19 | . . 1 2 . . . 4 . 4 1 2 . . . 2 . 1 . . . . . . . 1 . . . . . 1 . . . Critical Kills 9 | . . . 1 . . . 1 . 2 1 2 . . . . . . . . . . . . . 1 . . . . . 1 . . . Critical Parts Destroyed 10 | . . 1 1 . . . 3 . 2 . . . . . 2 . 1 . . . . . . . . . . . . . . . . . Melee Attacks 328 | . . . . . 4 . . . . . 36 2 19 1 56 . 11 . 16 . 48 . 10 1 16 . 26 1 15 1 27 10 27 1 Impact 27 | . . . . . . . . . . . 27 . . . . . . . . . . . . . . . . . . . . . . . Slashing 201 | . . . . . . . . . . . 7 2 19 1 56 . 11 . 4 . 8 . . . 16 . 26 1 15 1 16 10 8 . Piercing 77 | . . . . . . . . . . . . . . . . . . . 12 . 40 . 10 1 . . . . . . . . 13 1 Sneak Attacks 43 | . . . . . 4 . . . . . 4 . 4 . 6 . 1 . 2 . 1 . . . 2 . 4 . 2 . 7 . 6 . Combat Hostiles 2 | . . . . . . . . . . . . . . . . . . . . . . . . . . . . . . . . . 2 . Follow-up Attacks . | . . . . . . . . . . . . . . . . . . . . . . . . . . . . . . . . . . . Damage Inflicted 15378 | 135 242 603 1969 211 . 93 1859 812 1912 1002 1173 302 614 . 1524 . 201 . 327 . 182 . . . 329 . 571 . 304 . 564 . 449 . Guns 6917 | 63 242 264 1309 98 . 93 1443 405 1912 320 768 . . . . . . . . . . . . . . . . . . . . . . . Cannons . | . . . . . . . . . . . . . . . . . . . . . . . . . . . . . . . . . . . Explosions 2920 | 72 . 332 638 113 . . 374 407 . 682 . 302 . . . . . . . . . . . . . . . . . . . . . . Melee 5470 | . . . . . . . . . . . 405 . 614 . 1524 . 201 . 327 . 182 . . . 329 . 571 . 304 . 564 . 449 . Ramming 71 | . . 7 22 . . . 42 . . . . . . . . . . . . . . . . . . . . . . . . . . . Kinetic 6167 | 21 44 264 799 98 . 93 1443 405 1912 320 768 . . . . . . . . . . . . . . . . . . . . . . . Thermal 780 | 72 198 . 510 . . . . . . . . . . . . . . . . . . . . . . . . . . . . . . . Explosive 2848 | . . 332 638 113 . . 374 407 . 682 . 302 . . . . . . . . . . . . . . . . . . . . . . Electromagnetic 42 | 42 . . . . . . . . . . . . . . . . . . . . . . . . . . . . . . . . . . Impact 98 | . . . . . . . . . . . 98 . . . . . . . . . . . . . . . . . . . . . . . Slashing 4614 | . . . . . . . . . . . 307 . 614 . 1524 . 201 . . . . . . . 329 . 571 . 304 . 564 . 200 . Piercing 758 | . . . . . . . . . . . . . . . . . . . 327 . 182 . . . . . . . . . . . 249 . Highest Corruption 13 | . . . . . . . . . . . 3 3 3 3 . . . . . . 3 3 . . . . . 5 1 1 . . 1 13 Average Corruption 2 | . . . . . . . . . . . 2 3 3 3 . . . . . . 1 3 . . . . . 4 1 1 . . 1 4 Corruption Purged . | . . . . . . . . . . . . . . . . . . . . . . . . . . . . . . . . . . . Effects 25 | . . . . . . . . . . . 6 3 8 1 . . . . . . 5 . . . . . . . . . . . . 2 Message Errors 12 | . . . . . . . . . . . 4 1 2 . . . . . . . 4 . . . . . . . . . . . . 1 Matter Fused 5 | . . . . . . . . . . . . 2 3 . . . . . . . . . . . . . . . . . . . . . Heat Flow Errors 2 | . . . . . . . . . . . . . 1 . . . . . . . 1 . . . . . . . . . . . . . Energy Discharges 1 | . . . . . . . . . . . . . . 1 . . . . . . . . . . . . . . . . . . . . Parts Rejected 1 | . . . . . . . . . . . . . . . . . . . . . . . . . . . . . . . . . . 1 Data Loss (minor) 1 | . . . . . . . . . . . 1 . . . . . . . . . . . . . . . . . . . . . . . Targeting Errors 3 | . . . . . . . . . . . 1 . 2 . . . . . . . . . . . . . . . . . . . . . Overload Shots . | . . . . . . . . . . . . . . . . . . . . . . . . . . . . . . . . . . . Overflow Damage 962 | . . 4 80 . . . 6 18 . 9 18 . 145 . 101 . . . 120 . 88 . . . 122 . 91 . . . 76 . 84 . Projectiles . | . . . . . . . . . . . . . . . . . . . . . . . . . . . . . . . . . . . Explosions 116 | . . 4 80 . . . 5 18 . 9 . . . . . . . . . . . . . . . . . . . . . . . . Melee 846 | . . . . . . . 1 . . . 18 . 145 . 101 . . . 120 . 88 . . . 122 . 91 . . . 76 . 84 . Knockbacks 2 | . . . 1 . . . 1 . . . . . . . . . . . . . . . . . . . . . . . . . . . Impact 2 | . . . 1 . . . 1 . . . . . . . . . . . . . . . . . . . . . . . . . . . Kinetic . | . . . . . . . . . . . . . . . . . . . . . . . . . . . . . . . . . . . Secondary . | . . . . . . . . . . . . . . . . . . . . . . . . . . . . . . . . . . . Self-Inflicted Damage 151 | . . 37 62 11 . . . . . 19 . 22 . . . . . . . . . . . . . . . . . . . . . . Shots 9 | . . 2 4 1 . . . . . 1 . 1 . . . . . . . . . . . . . . . . . . . . . . Rammed 7 | . . 1 4 . . . 2 . . . . . . . . . . . . . . . . . . . . . . . . . . . Targets Rammed 7 | . . 1 4 . . . 2 . . . . . . . . . . . . . . . . . . . . . . . . . . . Kicked . | . . . . . . . . . . . . . . . . . . . . . . . . . . . . . . . . . . . Crushed . | . . . . . . . . . . . . . . . . . . . . . . . . . . . . . . . . . . . Highest Temperature 377 | 20 210 34 377 9 . . 175 114 105 8 9 10 200 . 8 . 12 22 25 2 87 4 12 . 18 23 5 19 14 1 . . 68 34 Average Temperature 54 | 13 72 11 115 8 . . 82 39 26 3 9 4 57 . 6 . 12 16 17 2 21 4 12 . 14 12 5 19 8 1 . . 43 20 Received Heat Transfer 1905 | . . 144 372 87 . . 234 87 243 108 126 76 36 . 45 . 9 18 21 . 54 4 30 . 12 21 36 36 9 9 . . 45 43 Effects 4 | . . . 4 . . . . . . . . . . . . . . . . . . . . . . . . . . . . . . . Shutdowns 1 | . . . 1 . . . . . . . . . . . . . . . . . . . . . . . . . . . . . . . Energy Bleed 2 | . . . 2 . . . . . . . . . . . . . . . . . . . . . . . . . . . . . . . Short Circuit 1 | . . . 1 . . . . . . . . . . . . . . . . . . . . . . . . . . . . . . . Siege Activations . | . . . . . . . . . . . . . . . . . . . . . . . . . . . . . . . . . . . Robots Corrupted . | . . . . . . . . . . . . . . . . . . . . . . . . . . . . . . . . . . . Combat Hostiles . | . . . . . . . . . . . . . . . . . . . . . . . . . . . . . . . . . . . Parts Fried . | . . . . . . . . . . . . . . . . . . . . . . . . . . . . . . . . . . . Impact Corruptions 2 | . . . . . . . 1 . . . 1 . . . . . . . . . . . . . . . . . . . . . . . Robots Melted . | . . . . . . . . . . . . . . . . . . . . . . . . . . . . . . . . . . . Combat Hostiles . | . . . . . . . . . . . . . . . . . . . . . . . . . . . . . . . . . . . Parts Melted 5 | . 2 . 3 . . . . . . . . . . . . . . . . . . . . . . . . . . . . . . . Heat Transferred 1860 | 50 592 . 1218 . . . . . . . . . . . . . . . . . . . . . . . . . . . . . . . Parts Sabotaged . | . . . . . . . . . . . . . . . . . . . . . . . . . . . . . . . . . . . Parts Stolen . | . . . . . . . . . . . . . . . . . . . . . . . . . . . . . . . . . . . Parts Stripped . | . . . . . . . . . . . . . . . . . . . . . . . . . . . . . . . . . . . Power Chain Reactions 1 | 1 . . . . . . . . . . . . . . . . . . . . . . . . . . . . . . . . . . Missiles Intercepted . | . . . . . . . . . . . . . . . . . . . . . . . . . . . . . . . . . . . Alert | -11 -10 -10 -9 -9 -9 -8 -8 -8 -8 -8 -7 -7 -7 -7 -6 -6 -6 -6 -5 -5 -5 -5 -4 -4 -4 -4 -3 -3 -2 -2 -1 -1 -1 -1 ------- Run | Scr Mat Min Mat Min Exi Min Mat Gar Mat Gar Fac Gar Fac Gar Fac Was Fac Gar Fac Was Fac Gar Fac Gar Fac Gar Res Gar Res Gar Acc Gar Acc Com Peak Influence 1777 | 5 165 189 336 143 . 35 217 401 411 588 343 305 454 337 582 129 612 238 195 21 359 146 268 245 205 163 159 144 627 535 462 366 1777 1165 Average Influence 269 | 3 71 102 147 133 . 32 83 307 299 450 264 263 337 304 262 115 378 231 94 21 197 137 186 216 154 151 89 117 389 517 428 307 1535 555 Maximum Alert Level 5 | . . . 1 . . . 1 2 2 2 1 1 2 1 2 . 2 1 . . 1 . 1 1 1 . . . 2 2 2 1 5 4 Low Security (%) 48 | 100 100 100 59 100 . 100 89 18 2 . 17 10 10 . 44 100 35 . 100 100 49 100 32 57 98 100 100 100 38 . . 5 . 45 Level 1 36 | . . . 40 . . . 10 68 95 34 82 89 56 100 42 . 9 100 . . 50 . 67 43 1 . . . . . 20 94 . 2 Level 2 10 | . . . . . . . . 12 2 65 . . 32 . 12 . 54 . . . . . . . . . . . 61 100 79 . . 6 Level 3 . | . . . . . . . . . . . . . . . . . . . . . . . . . . . . . . . . . . 4 Level 4 . | . . . . . . . . . . . . . . . . . . . . . . . . . . . . . . . . . . 41 Level 5 . | . . . . . . . . . . . . . . . . . . . . . . . . . . . . . . . . . . . High Security . | . . . . . . . . . . . . . . . . . . . . . . . . . . . . . . . . . . . Max Security 3 | . . . . . . . . . . . . . . . . . . . . . . . . . . . . . . . . . 99 . Squads Dispatched 70 | . 1 1 3 . . . 3 . 2 . 7 . 1 . 4 . 3 . 2 . 8 . 4 . . . 1 . 2 . 3 . 24 1 Investigation 18 | . . 1 . . . . 1 . 1 . 1 . 1 . 2 . 2 . 1 . 2 . 2 . . . . . 1 . 2 . . 1 Extermination 10 | . . . . . . . . . . . 2 . . . . . 1 . 1 . 3 . . . . . 1 . 1 . 1 . . . Reinforcement 15 | . 1 . 3 . . . 2 . 1 . 4 . . . 2 . . . . . . . 1 . . . . . . . . . 1 . Assault 23 | . . . . . . . . . . . . . . . . . . . . . . . 1 . . . . . . . . . 22 . Garrison 4 | . . . . . . . . . . . . . . . . . . . . . 3 . . . . . . . . . . . 1 . Intercept . | . . . . . . . . . . . . . . . . . . . . . . . . . . . . . . . . . . . Construction Impeded 2 | . . . . . . . 1 . . . . . . . . . . . . . . . . . . . . . . . . . 1 . Haulers Reinforced 3 | . . . . . . . . . . . 1 . . . 2 . . . . . . . . . . . . . . . . . . . Alert ID Control Effect 89 | . . . . . . . . . . . . . . . . . . . . . . . . . . . . . . . . 3 24 62 Stealth | -11 -10 -10 -9 -9 -9 -8 -8 -8 -8 -8 -7 -7 -7 -7 -6 -6 -6 -6 -5 -5 -5 -5 -4 -4 -4 -4 -3 -3 -2 -2 -1 -1 -1 -1 --------- Run | Scr Mat Min Mat Min Exi Min Mat Gar Mat Gar Fac Gar Fac Gar Fac Was Fac Gar Fac Was Fac Gar Fac Gar Fac Gar Res Gar Res Gar Acc Gar Acc Com Distress Signals 33 | . . . 1 . . . 1 . 2 . 2 . . . . . 1 . 3 . 3 . 3 . . . 2 . 2 . 2 . 5 6 Communications Jammed . | . . . . . . . . . . . . . . . . . . . . . . . . . . . . . . . . . . . Distress Signals . | . . . . . . . . . . . . . . . . . . . . . . . . . . . . . . . . . . . Times Spotted 880 | . 8 20 38 2 . 1 22 13 22 14 33 14 21 8 20 3 20 8 18 . 27 9 17 . 7 9 28 14 4 2 10 29 123 316 Peak Tracking Total 168 | . 3 8 5 2 . 1 4 7 6 3 5 9 8 5 9 3 8 11 6 . 8 13 11 . 4 9 16 15 4 4 8 13 39 168 Tactical Retreats 80 | . 1 2 . . . . 1 . . . 7 2 6 2 1 . 3 1 6 . 11 1 5 . 1 1 5 . 1 . 3 3 13 4 Traps | -11 -10 -10 -9 -9 -9 -8 -8 -8 -8 -8 -7 -7 -7 -7 -6 -6 -6 -6 -5 -5 -5 -5 -4 -4 -4 -4 -3 -3 -2 -2 -1 -1 -1 -1 ------- Run | Scr Mat Min Mat Min Exi Min Mat Gar Mat Gar Fac Gar Fac Gar Fac Was Fac Gar Fac Was Fac Gar Fac Gar Fac Gar Res Gar Res Gar Acc Gar Acc Com Traps Triggered 47 | . . . . . . . . 3 . 8 2 6 1 3 2 . . . 1 . 3 1 1 1 2 1 1 . 1 2 . 2 1 5 Indirectly . | . . . . . . . . . . . . . . . . . . . . . . . . . . . . . . . . . . . Trap Hack Attempts . | . . . . . . . . . . . . . . . . . . . . . . . . . . . . . . . . . . . Triggered . | . . . . . . . . . . . . . . . . . . . . . . . . . . . . . . . . . . . Disarmed . | . . . . . . . . . . . . . . . . . . . . . . . . . . . . . . . . . . . Reprogrammed 6 | . . . . . . . . . . . . . . . . . . . . . . . 6 . . . . . . . . . . . Reused 2 | . . . . . . . . . . . . . . . . . . . . . . . 2 . . . . . . . . . . . Traps Extracted . | . . . . . . . . . . . . . . . . . . . . . . . . . . . . . . . . . . . Installed . | . . . . . . . . . . . . . . . . . . . . . . . . . . . . . . . . . . . Triggered 2 | . . . . . . . . . . . . . . . . . . . . . . . 2 . . . . . . . . . . . Machines | -11 -10 -10 -9 -9 -9 -8 -8 -8 -8 -8 -7 -7 -7 -7 -6 -6 -6 -6 -5 -5 -5 -5 -4 -4 -4 -4 -3 -3 -2 -2 -1 -1 -1 -1 ---------- Run | Scr Mat Min Mat Min Exi Min Mat Gar Mat Gar Fac Gar Fac Gar Fac Was Fac Gar Fac Was Fac Gar Fac Gar Fac Gar Res Gar Res Gar Acc Gar Acc Com Machines Disabled 12 | . . . . . . . 1 . . . . 1 . 1 1 . . . . . . . . 1 . . . 1 . 1 . 2 2 1 Max in Single Turn 1 | . . . . . . . 1 . . . . 1 . 1 1 . . . . . . . . 1 . . . 1 . 1 . 1 1 1 Garrison Access 3 | . . . . . . . . . . . . . . . . . . . . . . . 1 . . . . . . . . . 2 . Garrison Relay 7 | . . . . . . . . . . . . 1 . 1 . . . . . . . . . 1 . . . 1 . 1 . 2 . . Machines Sabotaged . | . . . . . . . . . . . . . . . . . . . . . . . . . . . . . . . . . . . Garrisons Compromised . | . . . . . . . . . . . . . . . . . . . . . . . . . . . . . . . . . . . Overloaded Fab Kills . | . . . . . . . . . . . . . . . . . . . . . . . . . . . . . . . . . . . Fab Network Shutdowns 3 | . . . . . . . . . . . . . . . 1 . 1 . . . . . . . . . . . 1 . . . . . Hacking | -11 -10 -10 -9 -9 -9 -8 -8 -8 -8 -8 -7 -7 -7 -7 -6 -6 -6 -6 -5 -5 -5 -5 -4 -4 -4 -4 -3 -3 -2 -2 -1 -1 -1 -1 --------- Run | Scr Mat Min Mat Min Exi Min Mat Gar Mat Gar Fac Gar Fac Gar Fac Was Fac Gar Fac Was Fac Gar Fac Gar Fac Gar Res Gar Res Gar Acc Gar Acc Com Machines Accessed 123 | . 4 1 3 . 2 . 3 . 4 . 12 . 14 . 12 . 10 . 16 . 10 . 7 . 3 . 8 . 5 . 6 . . 3 Terminals 69 | . 3 . 1 . . . 1 . 2 . 7 . 7 . 9 . 6 . 11 . 4 . 4 . . . 5 . 2 . 4 . . 3 Fabricators 23 | . . . . . . . . . . . 2 . 4 . 3 . 2 . 4 . 2 . 1 . 1 . 2 . 1 . 1 . . . Repair Stations 5 | . . . 1 . . . . . . . . . 1 . . . . . . . 1 . . . 1 . . . 1 . . . . . Recycling Units 3 | . 1 . 1 . . . . . 1 . . . . . . . . . . . . . . . . . . . . . . . . . Scanalyzers 8 | . . . . . . . 1 . . . 2 . 1 . . . 1 . 1 . 2 . . . . . . . . . . . . . Garrison Access 12 | . . . . . . . 1 . 1 . 1 . 1 . . . 1 . . . 1 . 2 . 1 . 1 . 1 . 1 . . . Total Hacks 462 | . 7 1 7 . 2 . 11 . 12 . 36 . 71 . 48 . 48 . 57 . 40 . 24 . 6 . 40 . 20 . 25 . . 7 Successful 343 | . 3 1 3 . 2 . 8 . 8 . 22 . 49 . 31 . 36 . 45 . 32 . 22 . 6 . 40 . 19 . 15 . . 1 Failed 117 | . 4 . 4 . . . 3 . 4 . 14 . 22 . 16 . 12 . 11 . 8 . 2 . . . . . 1 . 10 . . 6 Catastrophic 21 | . 1 . . . . . . . . . 2 . 3 . 2 . 1 . 4 . 2 . . . . . . . . . 2 . . 4 Database Lockouts 2 | . . . . . . . . . . . . . . . 1 . . . 1 . . . . . . . . . . . . . . . Manual 237 | . 4 . . . 1 . 4 . 10 . 20 . 31 . 25 . 24 . 31 . 19 . 13 . 1 . 27 . 12 . 12 . . 3 Terminals 270 | . 6 . 2 . . . 6 . 10 . 23 . 29 . 33 . 33 . 36 . 18 . 16 . . . 25 . 10 . 16 . . 7 Fabricators 113 | . . . . . . . . . . . 5 . 21 . 15 . 7 . 19 . 13 . 5 . 3 . 14 . 4 . 7 . . . Repair Stations 19 | . . . 2 . . . . . . . . . 9 . . . . . . . 2 . . . 2 . . . 4 . . . . . Recycling Units 5 | . 1 . 3 . . . . . 1 . . . . . . . . . . . . . . . . . . . . . . . . . Scanalyzers 33 | . . . . . . . 3 . . . 7 . 11 . . . 6 . 2 . 4 . . . . . . . . . . . . . Garrison Access 19 | . . . . . . . 2 . 1 . 1 . 1 . . . 2 . . . 3 . 3 . 1 . 1 . 2 . 2 . . . Terminal Hacks 113 | . 1 1 . . 2 . 3 . 1 . 8 . 11 . 14 . 16 . 14 . 7 . 11 . . . 14 . 5 . 5 . . . Record 1 | . . . . . 1 . . . . . . . . . . . . . . . . . . . . . . . . . . . . . Part Schematic 24 | . . . . . . . . . . . . . 5 . 3 . 6 . 1 . 1 . 4 . . . 2 . 1 . 1 . . . Robot Schematic 1 | . . . . . . . . . . . 1 . . . . . . . . . . . . . . . . . . . . . . . Robot Analysis 5 | . . . . . . . . . . . . . . . . . . . . . . . . . . . 5 . . . . . . . Prototype ID Bank 7 | . . . . . . . 1 . . . 1 . . . 1 . 1 . 2 . . . 1 . . . . . . . . . . . Open Door 1 | . . 1 . . . . . . . . . . . . . . . . . . . . . . . . . . . . . . . . Branch Access Points 1 | . . . . . . . 1 . . . . . . . . . . . . . . . . . . . . . . . . . . . Machine Index 4 | . . . . . . . . . . . . . . . . . . . . . 1 . 1 . . . 1 . 1 . . . . . Terminal Index 6 | . . . . . . . . . . . 1 . 1 . 1 . 1 . 1 . . . . . . . . . . . 1 . . . Fabricator Index 6 | . . . . . . . . . . . 1 . 1 . 1 . 1 . 1 . . . . . . . . . . . 1 . . . Garrison Index 2 | . . . . . . . . . . . 1 . . . . . 1 . . . . . . . . . . . . . . . . . Unreport Threat 5 | . . . . . . . . . . . . . . . 2 . 2 . 1 . . . . . . . . . . . . . . . Locate Traps 14 | . . . . . . . . . . . 1 . 1 . 2 . 1 . 4 . 1 . . . . . 3 . 1 . . . . . Reprogram Traps 2 | . . . . . . . . . . . . . . . . . . . . . . . 2 . . . . . . . . . . . Security Status 1 | . . . . . . . . . . . . . . . . . . . . . . . . . . . . . 1 . . . . . Recall Investigation 3 | . . . . . . . . . . . . . 1 . 1 . . . 1 . . . . . . . . . . . . . . . Recall Extermination 4 | . . . . . . . . . . . . . . . . . . . 1 . 2 . . . . . 1 . . . . . . . Recall Reinforcements 1 | . 1 . . . . . . . . . . . . . . . . . . . . . . . . . . . . . . . . . Recall Assault 1 | . . . . . . . . . . . . . . . . . . . . . . . 1 . . . . . . . . . . . Hauler Manifests 12 | . . . . . . . 1 . 1 . 1 . 1 . 1 . 1 . 1 . 1 . 1 . . . 1 . 1 . 1 . . . Registered Components 1 | . . . . . . . . . . . . . . . 1 . . . . . . . . . . . . . . . . . . . Registered Prototypes 3 | . . . . . . . . . . . . . . . . . 1 . 1 . . . 1 . . . . . . . . . . . Zone Layout 7 | . . . . . . . . . . . 1 . 1 . 1 . 1 . . . 1 . . . . . 1 . . . 1 . . . EX-Prototype ID Bank 1 | . . . . . 1 . . . . . . . . . . . . . . . . . . . . . . . . . . . . . Fabricator Hacks 67 | . . . . . . . . . . . 1 . 8 . 9 . 4 . 13 . 10 . 3 . 2 . 9 . 3 . 5 . . . Network Status 4 | . . . . . . . . . . . . . . . 1 . . . 1 . . . . . . . 1 . . . 1 . . . Load Schematic 25 | . . . . . . . . . . . . . 3 . 3 . 2 . 5 . 5 . 1 . 1 . 2 . 1 . 2 . . . Build 38 | . . . . . . . . . . . 1 . 5 . 5 . 2 . 7 . 5 . 2 . 1 . 6 . 2 . 2 . . . Repair Station Hacks 18 | . . . 2 . . . . . . . . . 8 . . . . . . . 2 . . . 2 . . . 4 . . . . . Scan Component 9 | . . . 1 . . . . . . . . . 4 . . . . . . . 1 . . . 1 . . . 2 . . . . . Repair 9 | . . . 1 . . . . . . . . . 4 . . . . . . . 1 . . . 1 . . . 2 . . . . . Recycling Unit Hacks 2 | . 1 . 1 . . . . . . . . . . . . . . . . . . . . . . . . . . . . . . . Retrieve Components 2 | . 1 . 1 . . . . . . . . . . . . . . . . . . . . . . . . . . . . . . . Scanalyzer 30 | . . . . . . . 3 . . . 6 . 9 . . . 6 . 2 . 4 . . . . . . . . . . . . . Insert Component 14 | . . . . . . . 2 . . . 3 . 4 . . . 2 . 1 . 2 . . . . . . . . . . . . . Analyze 16 | . . . . . . . 1 . . . 3 . 5 . . . 4 . 1 . 2 . . . . . . . . . . . . . Garrison Access Hacks 11 | . . . . . . . 1 . 1 . 1 . 1 . . . 1 . . . 1 . 1 . 1 . 1 . 1 . 1 . . . Unlock Access 11 | . . . . . . . 1 . 1 . 1 . 1 . . . 1 . . . 1 . 1 . 1 . 1 . 1 . 1 . . . Unauthorized Hacks 215 | . 2 . . . . . 3 . 14 . 13 . 26 . 17 . 18 . 33 . 17 . 14 . 2 . 32 . 12 . 8 . . 4 Terminals 60 | . 1 . . . . . 1 . 5 . 3 . 6 . 4 . 5 . 11 . 3 . 3 . . . 11 . 4 . 2 . . 1 Track 14 | . . . . . . . . . 1 . . . 1 . 2 . 1 . 2 . . . 1 . . . 5 . 1 . . . . . Assimilate 6 | . . . . . . . . . . . 1 . 1 . . . 1 . 3 . . . . . . . . . . . . . . . Botnet 29 | . 1 . . . . . 1 . 2 . 2 . 3 . 2 . 2 . 5 . 1 . 1 . . . 4 . 2 . 2 . . 1 Disrupt 3 | . . . . . . . . . 1 . . . . . . . . . . . 1 . . . . . 1 . . . . . . . Operators 8 | . . . . . . . . . 1 . . . 1 . . . 1 . 1 . 1 . 1 . . . 1 . 1 . . . . . Fabricators 34 | . . . . . . . . . . . 3 . 6 . 4 . 3 . 5 . 3 . 2 . 1 . 5 . 1 . 1 . . . Report 7 | . . . . . . . . . . . . . 1 . 1 . 1 . 1 . 1 . . . . . 2 . . . . . . . Prioritize 4 | . . . . . . . . . . . 1 . 1 . . . . . . . . . 1 . . . 1 . . . . . . . Siphon 22 | . . . . . . . . . . . 2 . 4 . 2 . 2 . 4 . 2 . 1 . 1 . 2 . 1 . 1 . . . Haulers 1 | . . . . . . . . . . . . . . . 1 . . . . . . . . . . . . . . . . . . . Repair Stations . | . . . . . . . . . . . . . . . . . . . . . . . . . . . . . . . . . . . Recycling Units 1 | . . . . . . . . . 1 . . . . . . . . . . . . . . . . . . . . . . . . . Mask 1 | . . . . . . . . . 1 . . . . . . . . . . . . . . . . . . . . . . . . . Scanalyzers . | . . . . . . . . . . . . . . . . . . . . . . . . . . . . . . . . . . . Garrison Access 7 | . . . . . . . . . . . . . . . . . 1 . . . 2 . 2 . . . . . 1 . 1 . . . Reprogram 2 | . . . . . . . . . . . . . . . . . . . . . 1 . 1 . . . . . . . . . . . Eject 5 | . . . . . . . . . . . . . . . . . 1 . . . 1 . 1 . . . . . 1 . 1 . . . Data Cores Recovered . | . . . . . . . . . . . . . . . . . . . . . . . . . . . . . . . . . . . Used . | . . . . . . . . . . . . . . . . . . . . . . . . . . . . . . . . . . . Hacking Detections 86 | . 3 . 2 . . . 3 . 3 . 10 . 10 . 9 . 7 . 11 . 8 . 2 . 1 . 6 . 2 . 6 . . 3 Full Trace Events 7 | . . . . . . . . . 1 . . . 1 . 1 . 1 . . . 1 . . . . . . . . . 1 . . 1 Feedback Events 3 | . . . . . . . . . . . . . . . . . 2 . . . 1 . . . . . . . . . . . . . Corruption 1 | . . . . . . . . . . . . . . . . . . . . . 1 . . . . . . . . . . . . . Hackware Fried 2 | . . . . . . . . . . . . . . . . . 2 . . . . . . . . . . . . . . . . . Feedback Blocked . | . . . . . . . . . . . . . . . . . . . . . . . . . . . . . . . . . . . Robot Schematics Acquired 1 | . . . . . . . . . . . 1 . . . . . . . . . . . . . . . . . . . . . . . Robots Built . | . . . . . . . . . . . . . . . . . . . . . . . . . . . . . . . . . . . Matter . | . . . . . . . . . . . . . . . . . . . . . . . . . . . . . . . . . . . Time . | . . . . . . . . . . . . . . . . . . . . . . . . . . . . . . . . . . . Total Robot Build Rating . | . . . . . . . . . . . . . . . . . . . . . . . . . . . . . . . . . . . Part Schematics Acquired 37 | . . . . . . . 1 . . . 3 . 9 . 3 . 8 . 2 . 3 . 4 . . . 2 . 1 . 1 . . . Parts Built 28 | . . . . . . . . . . . 1 . 3 . 4 . 2 . 6 . 3 . 2 . 1 . 3 . 1 . 2 . . . Matter 7143 | . . . . . . . . . . . 234 . 520 . 710 . 426 . 1245 . 927 . 426 . 263 . 1248 . 520 . 624 . . . Time 3202 | . . . . . . . . . . . 117 . 232 . 418 . 228 . 378 . 660 . 304 . 93 . 444 . 180 . 148 . . . Total Part Build Rating 174 | . . . . . . . . . . . 7 . 13 . 20 . 10 . 35 . 18 . 10 . 7 . 27 . 9 . 18 . . . Parts Repaired 9 | . . . 1 . . . . . . . . . 4 . . . . . . . 1 . . . 1 . . . 2 . . . . . Time 330 | . . . 36 . . . . . . . . . 94 . . . . . . . 80 . . . 40 . . . 80 . . . . . Parts Recycled . | . . . . . . . . . . . . . . . . . . . . . . . . . . . . . . . . . . . Recycled Matter . | . . . . . . . . . . . . . . . . . . . . . . . . . . . . . . . . . . . Retrieved Matter . | . . . . . . . . . . . . . . . . . . . . . . . . . . . . . . . . . . . Retrieved Components 18 | . 8 . 10 . . . . . . . . . . . . . . . . . . . . . . . . . . . . . . . Parts Scanalyzed 13 | . . . . . . . 1 . . . 3 . 4 . . . 2 . 1 . 2 . . . . . . . . . . . . . Part Schematics Acquired 13 | . . . . . . . 1 . . . 3 . 4 . . . 2 . 1 . 2 . . . . . . . . . . . . . Parts Damaged 1 | . . . . . . . . . . . . . 1 . . . . . . . . . . . . . . . . . . . . . Bothacking | -11 -10 -10 -9 -9 -9 -8 -8 -8 -8 -8 -7 -7 -7 -7 -6 -6 -6 -6 -5 -5 -5 -5 -4 -4 -4 -4 -3 -3 -2 -2 -1 -1 -1 -1 ------------ Run | Scr Mat Min Mat Min Exi Min Mat Gar Mat Gar Fac Gar Fac Gar Fac Was Fac Gar Fac Was Fac Gar Fac Gar Fac Gar Res Gar Res Gar Acc Gar Acc Com Used RIF Installer 11 | . . . . . . . . 1 . 1 . 1 . 1 . . . 1 . . . 1 . 1 . 1 . 1 . 1 . 1 . . Coupler Efficiency 2 | . . . . . . . . . . . . . . . . . . . . . . . . 1 . . . . . . . 1 . . Robot Detection 1 | . . . . . . . . . . . . . . 1 . . . . . . . . . . . . . . . . . . . . Patrol Navigation 1 | . . . . . . . . . . . . . . . . . . 1 . . . . . . . . . . . . . . . . Alert ID Control 1 | . . . . . . . . . . . . . . . . . . . . . . 1 . . . . . . . . . . . . Structural Interface 1 | . . . . . . . . . . . . 1 . . . . . . . . . . . . . . . . . . . . . . Program Shield 1 | . . . . . . . . . . 1 . . . . . . . . . . . . . . . . . . . . . . . . Autoassimilate 2 | . . . . . . . . . . . . . . . . . . . . . . . . . . 1 . . . 1 . . . . Crosswire 1 | . . . . . . . . . . . . . . . . . . . . . . . . . . . . 1 . . . . . . Robots Hacked 256 | . . . . . 4 . . . . . 2 . . . 4 . 1 . 3 . . . 1 . 2 . . . 2 . 7 14 51 165 Non-combat 23 | . . . . . 3 . . . . . 2 . . . 4 . 1 . 1 . . . 1 . 2 . . . 2 . 5 . 2 . Combat 233 | . . . . . 1 . . . . . . . . . . . . . 2 . . . . . . . . . . . 2 14 49 165 Autoassimilated 224 | . . . . . . . . . . . . . . . . . . . . . . . . . . . . . . . 2 14 43 165 Robot Hacks Applied 37 | . . . . . 4 . . . . . 2 . . . 4 . 1 . 4 . . . 1 . 4 . . . 2 . 7 . 8 . parse_system 6 | . . . . . 4 . . . . . . . . . . . . . . . . . . . 1 . . . . . 1 . . . no_distress 15 | . . . . . . . . . . . 2 . . . 3 . 1 . . . . . . . 2 . . . 2 . 3 . 2 . find_chute 4 | . . . . . . . . . . . . . . . 1 . . . 2 . . . 1 . . . . . . . . . . . drop_inventory 2 | . . . . . . . . . . . . . . . . . . . . . . . . . 1 . . . . . 1 . . . map_route 1 | . . . . . . . . . . . . . . . . . . . . . . . . . . . . . . . 1 . . . link_fov 1 | . . . . . . . . . . . . . . . . . . . . . . . . . . . . . . . 1 . . . spike_heat 1 | . . . . . . . . . . . . . . . . . . . . . . . . . . . . . . . . . 1 . overwrite_iff 2 | . . . . . . . . . . . . . . . . . . . 2 . . . . . . . . . . . . . . . formatsys_high 5 | . . . . . . . . . . . . . . . . . . . . . . . . . . . . . . . . . 5 . Relay Couplers Released 45 | . . . . . . . . . . . . 4 . 3 . . 4 . . . 4 . 4 4 . . . 5 3 4 3 6 1 . Ejected 15 | . . . . . . . . . . . . . . . . . 4 . . . 4 . 1 . . . . . 3 . 3 . . . Machine Destruction 30 | . . . . . . . . . . . . 4 . 3 . . . . . . . . 3 4 . . . 5 . 4 . 6 1 . Attached 19 | . . . . . . . . . . . . . . . . . . . 1 . . . . . 1 . . . 2 3 3 5 4 . Crosswired 9 | . . . . . . . . . . . . . . . . . . . . . . . . . . . . 3 . 1 1 3 1 . Robots Rewired . | . . . . . . . . . . . . . . . . . . . . . . . . . . . . . . . . . . . Allies Hacked . | . . . . . . . . . . . . . . . . . . . . . . . . . . . . . . . . . . . Hacks Repelled . | . . . . . . . . . . . . . . . . . . . . . . . . . . . . . . . . . . . Allies | -11 -10 -10 -9 -9 -9 -8 -8 -8 -8 -8 -7 -7 -7 -7 -6 -6 -6 -6 -5 -5 -5 -5 -4 -4 -4 -4 -3 -3 -2 -2 -1 -1 -1 -1 -------- Run | Scr Mat Min Mat Min Exi Min Mat Gar Mat Gar Fac Gar Fac Gar Fac Was Fac Gar Fac Was Fac Gar Fac Gar Fac Gar Res Gar Res Gar Acc Gar Acc Com Total Allies 247 | . . . . . . . . . . . 1 . 1 . 3 . 1 . 5 . 4 . 3 . . . . . . . 2 14 48 165 Largest Group 78 | . . . . . . . . . . . 1 . 1 . 3 . 1 . 2 . 4 . 3 . . . . . . . 2 5 11 78 Highest-Rated Group 3778 | . . . . . . . . . . . 26 . 26 . 93 . 26 . 52 . 116 . 141 . . . . . . . 116 454 754 3778 Highest-Rated Ally 222 | . . . . . . . . . . . 26 . 26 . 31 . 26 . 49 . 29 . 47 . . . . . . . 58 222 222 69 Total Orders . | . . . . . . . . . . . . . . . . . . . . . . . . . . . . . . . . . . . Ally Attacks 810 | . . . . . . . . . . . . . . . 34 . . . 4 . 40 . 12 . . . . . . . 1 28 173 518 Total Damage 26221 | . . . . . . . . . . . . . . . 658 . . . 192 . 608 . 376 . . . . . . . 45 1178 7264 15900 Kills 111 | . . . . . . . . . . . . . . . 2 . . . . . 4 . 2 . . . . . . . . 3 29 71 Allies Corrupted 18 | . . . . . . . . . . . . . . . . . . . . . . . . . . . . . . . . . 6 12 Allies Melted . | . . . . . . . . . . . . . . . . . . . . . . . . . . . . . . . . . . . Intel | -11 -10 -10 -9 -9 -9 -8 -8 -8 -8 -8 -7 -7 -7 -7 -6 -6 -6 -6 -5 -5 -5 -5 -4 -4 -4 -4 -3 -3 -2 -2 -1 -1 -1 -1 ------- Run | Scr Mat Min Mat Min Exi Min Mat Gar Mat Gar Fac Gar Fac Gar Fac Was Fac Gar Fac Was Fac Gar Fac Gar Fac Gar Res Gar Res Gar Acc Gar Acc Com Robot Analysis Total 5 | . . . . . . . . . . . . . . . . . . . . . . . . . . . 5 . . . . . . . Derelict Logs Recovered 1 | . . 1 . . . . . . . . . . . . . . . . . . . . . . . . . . . . . . . . Drone Launches 7 | . . . . . . . . . . . . . . . . . 2 . . . . . . . . . 2 . 3 . . . . . Drone Recoveries . | . . . . . . . . . . . . . . . . . . . . . . . . . . . . . . . . . . . Exploration | -11 -10 -10 -9 -9 -9 -8 -8 -8 -8 -8 -7 -7 -7 -7 -6 -6 -6 -6 -5 -5 -5 -5 -4 -4 -4 -4 -3 -3 -2 -2 -1 -1 -1 -1 ------------- Run | Scr Mat Min Mat Min Exi Min Mat Gar Mat Gar Fac Gar Fac Gar Fac Was Fac Gar Fac Was Fac Gar Fac Gar Fac Gar Res Gar Res Gar Acc Gar Acc Com Turns Passed 14433 | 31 358 790 1319 65 728 129 970 457 1082 730 1269 146 530 104 609 19 271 22 669 94 806 27 376 100 354 31 795 57 264 97 345 158 499 132 Spaces Moved 18154 | 12 162 363 502 25 390 58 301 177 346 283 1906 291 1230 310 1127 71 798 75 1600 282 1328 82 734 246 589 94 1118 136 497 135 678 419 1355 434 Core 2 | . . . . . . . . . . . . . . . . . . . . . . . . . . . . . . . . . . 2 Treads 2629 | . . 253 502 25 390 58 301 177 346 283 294 . . . . . . . . . . . . . . . . . . . . . . . Legs 264 | 12 162 90 . . . . . . . . . . . . . . . . . . . . . . . . . . . . . . . . Wheels 20 | . . 20 . . . . . . . . . . . . . . . . . . . . . . . . . . . . . . . . Hover . | . . . . . . . . . . . . . . . . . . . . . . . . . . . . . . . . . . . Flight 15239 | . . . . . . . . . . . 1612 291 1230 310 1127 71 798 75 1600 282 1328 82 734 246 589 94 1118 136 497 135 678 419 1355 432 Fastest Speed 14 | 120 120 140 180 180 180 200 200 220 200 220 26 26 26 26 26 26 26 20 26 23 23 20 26 20 26 20 26 17 26 17 26 14 14 15 Average Speed 53 | 120 144 177 188 180 181 200 211 220 210 220 49 26 26 26 26 26 26 25 26 25 27 25 28 26 27 25 28 25 26 25 26 25 25 25 Slowest Speed 230 | 120 180 180 230 180 200 200 220 220 220 220 180 26 26 26 26 26 26 26 26 26 29 26 30 29 29 29 29 26 26 26 26 26 26 50 Overloaded Moves 203 | . . . . . . . . . . . . . . . . . . 3 . 19 45 9 . 1 . 17 . 8 . 10 . 33 43 15 Propulsion Burnouts . | . . . . . . . . . . . . . . . . . . . . . . . . . . . . . . . . . . . Robots Hopped 216 | . . . . . . . . . . . 18 2 11 3 8 . 15 . 25 4 11 . 3 . 7 . 20 6 7 . 3 5 54 14 Cave-ins Triggered . | . . . . . . . . . . . . . . . . . . . . . . . . . . . . . . . . . . . Exploration Rate (%) 41 | 3 35 79 40 10 68 16 30 39 34 48 49 71 32 72 26 73 32 34 43 96 37 37 19 64 13 44 31 45 16 38 17 82 40 26 Regions Visited 34 Branch Regions 5 Pre-discovered Areas 2 | . . 1 . . 1 . . . . . . . . . . . . . . . . . . . . . . . . . . . . . Known Exits Taken 11 | . . . . . . . 1 . 1 . 1 . 1 . . . 1 . . . 1 . 1 . 1 . 1 . 1 . 1 . . . Unknown Exits Taken 8 | 1 1 1 1 1 1 1 . . . . . . . . . . . . . . . . . . . . . . . . . . 1 . Scrap Searched 2 | . . 2 . . . . . . . . . . . . . . . . . . . . . . . . . . . . . . . . Spaces Dug 180 | . . . . . . . . . . . 15 1 9 . 24 . 8 . 11 . 37 . 10 . 12 . 20 . 11 . 8 7 7 . Terrain Destroyed 367 | 2 . 27 58 18 . . 17 12 . 22 15 32 9 . 24 . 8 . 11 . 37 . 10 . 12 . 20 . 11 . 8 7 7 . Melee 180 | . . . . . . . . . . . 15 1 9 . 24 . 8 . 11 . 37 . 10 . 12 . 20 . 11 . 8 7 7 . Projectile . | . . . . . . . . . . . . . . . . . . . . . . . . . . . . . . . . . . . AOE 187 | 2 . 27 58 18 . . 17 12 . 22 . 31 . . . . . . . . . . . . . . . . . . . . . . Actions | -11 -10 -10 -9 -9 -9 -8 -8 -8 -8 -8 -7 -7 -7 -7 -6 -6 -6 -6 -5 -5 -5 -5 -4 -4 -4 -4 -3 -3 -2 -2 -1 -1 -1 -1 --------- Run | Scr Mat Min Mat Min Exi Min Mat Gar Mat Gar Fac Gar Fac Gar Fac Was Fac Gar Fac Was Fac Gar Fac Gar Fac Gar Res Gar Res Gar Acc Gar Acc Com Total 21588 | 18 230 456 723 33 408 64 537 215 540 349 2093 353 1402 328 1352 70 832 76 1803 299 1701 87 888 280 748 100 1536 149 601 197 820 450 1411 439 Wait 2112 | . 19 31 47 . . . 142 10 66 11 60 10 134 . 143 . 17 2 165 20 299 3 124 19 125 3 392 7 73 50 98 2 35 5 Move 17733 | 11 161 362 501 24 389 57 301 176 346 282 1870 287 1208 303 1111 70 768 74 1556 274 1308 81 728 244 574 93 1081 125 483 134 671 410 1259 411 Hop 178 | . . . . . . . . . . . 17 1 11 3 8 . 15 . 19 3 8 . 3 . 7 . 17 4 6 . 3 3 41 9 Pick Up 204 | . 12 7 28 . 7 1 16 . 11 3 19 2 11 1 9 . 6 . 8 1 12 . 6 3 4 . 7 3 7 3 9 5 2 1 Fast Attach 42 | 1 . 2 9 . . . 4 2 4 1 1 . 3 . 2 . . . 6 . 3 . 1 . 1 . . . 1 . . 1 . . Attach 119 | . 1 5 10 . 1 1 6 . 1 . 17 2 5 . 5 . 4 . 5 . 6 . 4 1 3 1 7 2 5 3 5 5 9 5 Detach 20 | . . 1 2 . . . 1 . 1 . . 1 . . 1 . 1 . 3 . 2 . 2 . . . 2 . 2 . . . 1 . Swap 96 | 1 1 7 10 2 3 1 2 2 7 6 4 1 3 . 3 . 2 . 11 . 4 . 3 2 5 1 . 4 3 . 2 2 4 . Drop 187 | . 4 7 20 . 4 . 7 2 20 6 30 . 8 . 10 . 6 . 11 1 12 . 6 3 4 1 3 3 3 4 5 6 1 . Fire 409 | 5 32 33 92 7 . 4 56 18 84 24 31 2 2 . 4 . 1 . 4 . . . 1 . 5 . . . 2 . . . 2 . Melee 317 | . . . . . 4 . . . . . 36 2 17 1 56 . 11 . 15 . 40 . 10 1 16 . 26 1 15 1 27 10 27 1 Ram . | . . . . . . . . . . . . . . . . . . . . . . . . . . . . . . . . . . . Kick . | . . . . . . . . . . . . . . . . . . . . . . . . . . . . . . . . . . . Crush 7 | . . 1 4 . . . 2 . . . . . . . . . . . . . . . . . . . . . . . . . . . Escape Stasis 123 | . . . . . . . . 5 . 16 8 45 . 20 . . . . . . 7 3 . 7 4 1 . . . 2 . 1 . 4 Rewire 38 | . . . . . . . . . . . . . . . . . . . . . . . . . . . . . . . . 5 30 3 Trap . | . . . . . . . . . . . . . . . . . . . . . . . . . . . . . . . . . . . Miscellaneous 3 | . . . . . . . . . . . . . . . . . 1 . . . . . . . . . 1 . 1 . . . . . Route ------- -11/Scrapyard -10/Materials -10/Mines (discovered 2 exits: *Mat x2) -9/Materials (discovered 2 exits: [*Min x2]) -9/Mines -9/Exiles -8/Mines -8/Materials (discovered 2 exits: *Fac / Gar) -8/Garrison (discovered 2 exits: *Mat x2) -8/Materials (discovered 2 exits: *Fac / Gar) -8/Garrison (discovered 2 exits: *Fac x2) -7/Factory (discovered 4 exits: *Fac / [*Low x2] / Gar) -7/Garrison (discovered 3 exits: *Fac x3) -7/Factory (discovered 3 exits: *Fac x2 / Gar) -7/Garrison (discovered 3 exits: *Fac x3) -6/Factory (discovered 2 exits: *Fac / [*Ext]) -6/Waste -6/Factory (discovered 2 exits: *Fac / Gar) -6/Garrison -5/Factory (discovered 3 exits: *Fac x2 / [*Upp]) -5/Waste -5/Factory (discovered 3 exits: *Fac / [*Upp] / Gar) -5/Garrison -4/Factory -4/Garrison (discovered 2 exits: *Fac x2) -4/Factory -4/Garrison -3/Research (discovered 2 exits: *Res / Gar) -3/Garrison -2/Research -2/Garrison -1/Access -1/Garrison (discovered 3 exits: [*Acc x3]) -1/Access -1/Command (discovered 1 exit: [*Sur]) History --------- Turn | Location | Event 13 | -11/Scrapyard | Discovered new exit (range 2) 32 | -11/Scrapyard | Entered Materials 171 | -10/Materials | Discovered new exit (range 6) 330 | -10/Materials | Build established: Mutant 390 | -10/Materials | Entered Mines 561 | -10/Mines | Met a Derelict shopkeep closing up shop 771 | -10/Mines | Discovered new exit (range 11) 974 | -10/Mines | Build established: Hauler-Mutant 1026 | -10/Mines | Core integrity fell below 50% 1061 | -10/Mines | Discovered new exit (range 10) 1146 | -10/Mines | Learned location of Zion (-7) 1149 | -10/Mines | Assembled infested the area 1180 | -10/Mines | Entered Materials 1180 | -9/Materials | Evolved 2 slots: Utility x2 1482 | -9/Materials | Lost 3 parts (1u2w) 1631 | -9/Materials | Repaired Broken Lgt. Treads? 1793 | -9/Materials | Discovered new exit (range 9) 2085 | -9/Materials | Destroyed 7 combat bots 2173 | -9/Materials | Discovered new exit (range 12) 2198 | -9/Materials | Core integrity fell below 50% 2419 | -9/Materials | Build established: Scavenger-Mutant 2499 | -9/Materials | Entered Mines 2525 | -9/Mines | Met a Derelict bent on vengeance 2556 | -9/Mines | Deemed a non-threat by the Exiles lab entrance 2556 | -9/Mines | Discovered new exit (range 5) 2564 | -9/Mines | Entered Exiles 2609 | -9/Exiles | Met 8R-AWN 2640 | -9/Exiles | Met EX-HEX 2729 | -9/Exiles | Met EX-DEC 2894 | -9/Exiles | Met EX-BIN 2914 | -9/Exiles | Aligned with FarCom system 2916 | -9/Exiles | Given EX-Vault access code 2959 | -9/Exiles | Opened EX-Vault 2971 | -9/Exiles | Found Lightpack 2.0 2975 | -9/Exiles | Found Cloak of Protection 2981 | -9/Exiles | Found Potential Leg 2984 | -9/Exiles | Found Potential Leg 3036 | -9/Exiles | Warned to stay clear of 0b10 Research branches 3268 | -9/Exiles | Discovered new exit (range 14) 3292 | -9/Exiles | Stole three prototypes: Potential Leg, Lightpack 2.0, Cloak of Protection 3292 | -9/Exiles | Entered Mines 3363 | -8/Mines | Discovered new exit (range 7) 3421 | -8/Mines | Entered Materials 3421 | -8/Materials | Evolved 2 slots: Utility x2 3613 | -8/Materials | Build established: Hauler-Mutant 3675 | -8/Materials | Lost 3 parts (1p1n1w) 4158 | -8/Materials | Discovered new exit (range 14) 4391 | -8/Materials | Identified exit to Garrison 4391 | -8/Materials | Entered Garrison 4524 | -8/Garrison | Triggered checkpoint 4538 | -8/Garrison | Triggered checkpoint 4611 | -8/Garrison | Discovered new exit (range 10) 4778 | -8/Garrison | Triggered checkpoint 4797 | -8/Garrison | Discovered new exit (range 15) 4839 | -8/Garrison | Installed Relay Interface Framework 4848 | -8/Garrison | Entered Materials 5665 | -8/Materials | Discovered new exit (range 10) 5930 | -8/Materials | Identified exit to Garrison 5930 | -8/Materials | Entered Garrison 5962 | -8/Garrison | Triggered checkpoint 6172 | -8/Garrison | Triggered checkpoint 6372 | -8/Garrison | Discovered new exit (range 8) 6518 | -8/Garrison | Triggered checkpoint 6605 | -8/Garrison | Discovered new exit (range 15) 6652 | -8/Garrison | Expanded RIF knowledge: Program Shield 6660 | -8/Garrison | Entered Factory 6660 | -7/Factory | Evolved 2 slots: Propulsion x2 6662 | -7/Factory | FarCom data flow suspended 7496 | -7/Factory | Discovered new exit (range 16) 7546 | -7/Factory | Discovered new exit (range 4) 7685 | -7/Factory | Discovered new exit (range 5) 7719 | -7/Factory | Identified exit to Garrison 7875 | -7/Factory | Fabricated Imp. Phase Shifter (x1) 7929 | -7/Factory | Entered Garrison 7938 | -7/Garrison | Triggered checkpoint 7974 | -7/Garrison | Triggered checkpoint 8001 | -7/Garrison | Discovered new exit (range 10) 8010 | -7/Garrison | Garrison Relay disabled 8032 | -7/Garrison | Triggered checkpoint 8044 | -7/Garrison | Discovered new exit (range 12) 8056 | -7/Garrison | Triggered checkpoint 8062 | -7/Garrison | Triggered checkpoint 8068 | -7/Garrison | Discovered new exit (range 10) 8072 | -7/Garrison | Expanded RIF knowledge: Structural Interface 8075 | -7/Garrison | Entered Factory 8253 | -7/Factory | Fabricated Cld. VTOL Module? 8295 | -7/Factory | Discovered new exit (range 9) 8343 | -7/Factory | Fabricated Cld. VTOL Module? 8352 | -7/Factory | Fabricated Imp. Hacking Suite? 8356 | -7/Factory | Repaired Adv. Weight Redist. System 8357 | -7/Factory | Build established: Hacker-Sprinter 8382 | -7/Factory | Repaired Imp. Flight Unit 8407 | -7/Factory | Repaired Lgt. Angular Momentum Engine 8434 | -7/Factory | Repaired Imp. Flight Unit 8570 | -7/Factory | Discovered new exit (range 11) 8605 | -7/Factory | Identified exit to Garrison 8605 | -7/Factory | Entered Garrison 8611 | -7/Garrison | Garrison Relay disabled 8645 | -7/Garrison | Discovered new exit (range 8) 8676 | -7/Garrison | Discovered new exit (range 12) 8696 | -7/Garrison | Discovered new exit (range 15) 8708 | -7/Garrison | Expanded RIF knowledge: Robot Detection 8709 | -7/Garrison | Entered Factory 8709 | -6/Factory | Evolved 2 slots: Utility x2 8886 | -6/Factory | Fabricated Imp. Hacking Suite? 8903 | -6/Factory | Central database locked down 8988 | -6/Factory | Fabricated Imp. Hacking Suite (x1) 8988 | -6/Factory | Allied Derelicts emerged from ambush trap array 9010 | -6/Factory | Fabricated Cld. Cesium-ion Thruster? 9052 | -6/Factory | Discovered new exit (range 12) 9141 | -6/Factory | Fabricated Cld. Cesium-ion Thruster? 9206 | -6/Factory | Discovered new exit (range 7) 9209 | -6/Factory | Local fabrication network quarantined 9274 | -6/Factory | Build established: Wizard-Sprinter 9318 | -6/Factory | Manually triggered Chute Trap 9318 | -6/Factory | Sucked down chute 9318 | -6/Factory | Entered Waste 9321 | -6/Waste | Spotted C-40 Crusher 9322 | -6/Waste | Spotted C-40 Crusher 9322 | -6/Waste | Spotted C-40 Crusher 9323 | -6/Waste | Spotted C-40 Crusher 9330 | -6/Waste | Spotted C-40 Crusher 9334 | -6/Waste | Spotted C-40 Crusher 9334 | -6/Waste | Discovered new exit (range 10) 9337 | -6/Waste | Entered Factory 9433 | -6/Factory | Local fabrication network quarantined 9473 | -6/Factory | Discovered new exit (range 16) 9490 | -6/Factory | Fabricated Cld. Cesium-ion Thruster? 9554 | -6/Factory | Fabricated Cld. Cesium-ion Thruster? 9581 | -6/Factory | Imp. Hacking Suite fried by hacking feedback 9581 | -6/Factory | Hacking Suite fried by hacking feedback 9608 | -6/Factory | Identified exit to Garrison 9608 | -6/Factory | Entered Garrison 9618 | -6/Garrison | Triggered checkpoint 9624 | -6/Garrison | Discovered new exit (range 12) 9629 | -6/Garrison | Expanded RIF knowledge: Patrol Navigation 9630 | -6/Garrison | Entered Factory 9630 | -5/Factory | Evolved 2 slots: Utility x2 9678 | -5/Factory | Discovered new exit (range 9) 9691 | -5/Factory | Spotted B-75 Beast 9784 | -5/Factory | Fabricated Adv. Hacking Suite (x1) 9839 | -5/Factory | Fabricated Adv. Hacking Suite (x1) 9880 | -5/Factory | Central database locked down 9968 | -5/Factory | Fabricated Exp. Utility Shielding? 9993 | -5/Factory | Fabricated Cld. Nuclear Pulse Thruster? 10048 | -5/Factory | Discovered new exit (range 15) 10058 | -5/Factory | Discovered new exit (range 16) 10192 | -5/Factory | Fabricated Cld. Nuclear Pulse Thruster? 10272 | -5/Factory | Fabricated Cld. Nuclear Pulse Thruster (x1) 10299 | -5/Factory | Manually triggered Chute Trap 10299 | -5/Factory | Sucked down chute 10299 | -5/Factory | Entered Waste 10299 | -5/Waste | The area was eerily silent 10324 | -5/Waste | Discovered new exit (range 13) 10393 | -5/Waste | Entered Factory 10408 | -5/Factory | Discovered new exit (range 16) 10608 | -5/Factory | Discovered new exit (range 8) 10699 | -5/Factory | Fabricated Exp. Propulsion Shielding? 10775 | -5/Factory | Fabricated Cld. Nuclear Pulse Thruster? 10788 | -5/Factory | Repaired Exp. Utility Shielding? 10791 | -5/Factory | Garrison activated, responded to threat 11093 | -5/Factory | Fabricated Inertial Stasis Machine (x1) 11195 | -5/Factory | Identified exit to Garrison 11199 | -5/Factory | Entered Garrison 11208 | -5/Garrison | Spotted B-75 Beast 11217 | -5/Garrison | Discovered new exit (range 15) 11222 | -5/Garrison | Triggered checkpoint 11225 | -5/Garrison | Expanded RIF knowledge: Alert ID Control 11226 | -5/Garrison | Entered Factory 11226 | -4/Factory | Evolved 2 slots: Utility x2 11470 | -4/Factory | Fabricated Exp. Utility Shielding? 11564 | -4/Factory | Fabricated Exp. Utility Shielding (x1) 11602 | -4/Factory | Identified exit to Garrison 11602 | -4/Factory | Entered Garrison 11638 | -4/Garrison | Triggered checkpoint 11641 | -4/Garrison | Discovered new exit (range 10) 11659 | -4/Garrison | Garrison Relay disabled 11696 | -4/Garrison | Discovered new exit (range 15) 11701 | -4/Garrison | Expanded RIF knowledge: Coupler Efficiency 11702 | -4/Garrison | Entered Factory 11717 | -4/Factory | Spotted B-86 Titan 11921 | -4/Factory | Identified exit to Garrison 11960 | -4/Factory | Fabricated Exp. Hacking Suite? 11984 | -4/Factory | Repaired Exp. Utility Shielding 12056 | -4/Factory | Entered Garrison 12070 | -4/Garrison | Spotted B-86 Titan 12071 | -4/Garrison | Triggered checkpoint 12072 | -4/Garrison | Triggered checkpoint 12081 | -4/Garrison | Discovered new exit (range 15) 12086 | -4/Garrison | Expanded RIF knowledge: Autoassimilate 12087 | -4/Garrison | Entered Research 12087 | -3/Research | Evolved 2 slots: Utility x2 12284 | -3/Research | Fabricated Cld. Q-thruster (x1) 12395 | -3/Research | Fabricated Cld. Q-thruster (x1) 12652 | -3/Research | Spotted B-86 Titan 12663 | -3/Research | Found Enh. Force Lance 12737 | -3/Research | Fabricated Cld. Q-thruster (x1) 12790 | -3/Research | Discovered new exit (range 7) 12882 | -3/Research | Identified exit to Garrison 12882 | -3/Research | Entered Garrison 12884 | -3/Garrison | Expanded RIF knowledge: Crosswire 12910 | -3/Garrison | Triggered checkpoint 12911 | -3/Garrison | Garrison Relay disabled 12937 | -3/Garrison | Discovered new exit (range 11) 12939 | -3/Garrison | Entered Research 12939 | -2/Research | Evolved 2 slots: Utility x2 13040 | -2/Research | Local fabrication network quarantined 13074 | -2/Research | Fabricated Cld. Q-thruster? 13086 | -2/Research | Repaired Exp. Utility Shielding 13127 | -2/Research | Repaired Cld. Cesium-ion Thruster 13197 | -2/Research | Identified exit to Garrison 13203 | -2/Research | Entered Garrison 13205 | -2/Garrison | Expanded RIF knowledge: Autoassimilate 13211 | -2/Garrison | Garrison Relay disabled 13235 | -2/Garrison | Spotted B-90 Cyclops 13299 | -2/Garrison | Discovered new exit (range 8) 13300 | -2/Garrison | Entered Access 13300 | -1/Access | Evolved 2 slots: Utility x2 13431 | -1/Access | Build established: Botlord-Sprinter 13495 | -1/Access | Fabricated Imp. Quantum Reactor (x1) 13570 | -1/Access | Fabricated Cld. Q-thruster? 13641 | -1/Access | Identified exit to Garrison 13645 | -1/Access | Entered Garrison 13659 | -1/Garrison | Spotted B-99 Colossus 13667 | -1/Garrison | Spotted B-99 Colossus 13687 | -1/Garrison | Discovered new exit (range 8) 13702 | -1/Garrison | Triggered checkpoint 13709 | -1/Garrison | Autoassimilated Colossus 10a with RIF 13716 | -1/Garrison | Triggered checkpoint 13723 | -1/Garrison | Garrison Relay disabled 13723 | -1/Garrison | Triggered checkpoint 13748 | -1/Garrison | Triggered checkpoint 13750 | -1/Garrison | Discovered new exit (range 15) 13755 | -1/Garrison | Expanded RIF knowledge: Coupler Efficiency 13766 | -1/Garrison | Found Antimissile System 13783 | -1/Garrison | Triggered checkpoint 13790 | -1/Garrison | Triggered checkpoint 13791 | -1/Garrison | Garrison Relay disabled 13799 | -1/Garrison | Discovered new exit (range 10) 13803 | -1/Garrison | Entered Access 13806 | -1/Access | Maximum security lockdown engaged 13848 | -1/Access | Spotted B-99 Colossus 13943 | -1/Access | Spotted Executioner 13943 | -1/Access | Spotted Executioner 13967 | -1/Access | Assimilated Colossus 10b with formatsys_high 14109 | -1/Access | Lost 3 parts (1n2w) 14215 | -1/Access | Spotted B-99 Colossus 14215 | -1/Access | Spotted B-99 Colossus 14300 | -1/Access | Discovered new exit (range 17) 14300 | -1/Access | Spotted Striker 14300 | -1/Access | Spotted Striker 14301 | -1/Access | Spotted B-99 Colossus 14301 | -1/Access | Spotted B-99 Colossus 14302 | -1/Access | Entered Command 14302 | -1/Command | Accompanied by 1 ally 14318 | -1/Command | Found Prototype Processor 14321 | -1/Command | Lost 3 parts (1p1n1u) 14424 | -1/Command | System corruption reached 10% 14424 | -1/Command | Spotted Alpha 7 14424 | -1/Command | Spotted Alpha 7 14424 | -1/Command | Spotted Striker 14424 | -1/Command | Spotted Striker 14424 | -1/Command | Spotted Executioner 14424 | -1/Command | Spotted Executioner 14424 | -1/Command | Spotted Executioner 14424 | -1/Command | Spotted Executioner 14424 | -1/Command | Spotted B-99 Colossus 14429 | -1/Command | Core integrity fell below 50% 14430 | -1/Command | Spotted B-99 Colossus 14430 | -1/Command | Discovered new exit (range 8) 14432 | -1/Command | Core integrity fell below 20% 14434 | -1/Command | Destroyed by Executioner with Helical Railgun Last Messages --------------- 14431_ Slug penetrates Wall. 14431_ Penetrated by Slug. 14431_ Relay Coupler [Specialist] destroyed. 14431_ Slug penetrates Wall. 14431_ Stasis field depleted. 14432_ Cld. Q-thruster destroyed. 14432_ Penetrated by Slug. 14432_ Triggered Stasis Trap. 14432_ A bubble of rippling energy engulfs the area. 14432_ Field strength at 94. 14432_ Field strength at 88. 14433_ Knocked back. 14433_ Relay Coupler [Sentry] destroyed. 14433_ Penetrated by Slug. 14433_ Slug penetrates Wall. 14433_ Field strength at 7. 14434_ Penetrated by Slug. 14434_ Stasis field depleted. 14434_ Slug penetrates B-99 Colossus. 14434_ Penetrated by Slug. Map ----- +----------------------------------------------------+ | ????# ############## #??????????????# | | ????# # #???????????????????# | | ????# + #???????????????????# | | ????# # "" #???????????????????########## | | ##+## # """" #????????????????????????????? | | #? """" +????????????????????????????? | | #? "" #????????????????????????????? | | #?? #????????????????????????????? | | #?? = #????????????????????????????? | | h##+#######?????????????????????????????? | | ######### #???????????????????????????????????? | | ????????#h #???????????????????????????????????? | | ??#?????#h #???????????????????????????????????? | | ??# ????#h #???????????????????????????????????? | | ??# ????#h #???????????????????????????????????? | | ??# =???# #???????????????????????????????????? | | ??# =???# #???????????????????????????????????? | | ??# =|??# #???????????????????????????????????? | | ??+ ??# #???????????????????????????????????? | | ??# ?# #???????????????????????????????????? | | ??# ?# #???????????????????????????????????? | | ??# # #????????????#############??????????? | | ??# # #??#####?????BB #??????????? | | ??# + ####;=;######BB #??????????? | | ??# # ##!|!!;p; ; ; ^ #??????????? | | ??####### ##=p7= E ^ @ #??????????? | | ???# pp/!p K ^ #??????????? | | ???# hp pppp E "< #??????????? | | #### p/p p "" #??????????? | | p p /p ;#?????????? | | #### ######## 7 KE E ##?????????? | | ???# #??????### ; # # ;BB #??????????? | | ???+ #????????#;######;BB #??????????? | | ???# #????????##?????## #??????????? | | ???# #?????????????????#############??????????? | | ???# #????????????????????????????????????????? | | ???# #????????????????????????????????????????? | | ???# +????????????????????????????????????????? | | ???# #????????????????????????????????????????? | | ???# +????????????????????????????????????????? | | #### #????????????????????????????????????????? | | #????????????????????????????????????????? | | #????????????????????????????????????????? | | #????????????????????????????????????????? | | #????????????????????????????????????????? | | #????????????????????????????????????????? | | ??????????????????????????????????? | | ????????????????????????????????? | | ????????????????????????????????? | | ????????????????????????????????? | +----------------------------------------------------+ Best States ------------- Heat Dissipation 52 Energy Generation 29 Energy Capacity 350 Matter Stores 300 Matter Capacity 300 Sight Range 20 Robot Scan Range 20 Terrain Scan Density 10 Additional Mass Support 28 Armor Coverage 450 Resistance: KI 20 Propulsion Shielding 90 Utility Shielding 90 Evasion (%) 66 Targeting Accuracy 5 Recoil Reduction 4 Stasis Canceling 2 Offensive Hacking 102 Defensive Hacking 30 Item Schematics ----------------- Imp. Flight Unit | -8/Materials | Scanalyzed Hacking Suite | -7/Factory | Scanalyzed System Shield | -7/Factory | Scanalyzed Imp. Utility Shielding | -7/Factory | Scanalyzed Imp. Propulsion Shielding | -7/Factory | Hacked Imp. VTOL Module | -7/Factory | Hacked Cld. VTOL Module | -7/Factory | Hacked Imp. Hacking Suite | -7/Factory | Hacked Imp. System Shield | -7/Factory | Hacked Imp. Cesium-ion Thruster | -7/Factory | Scanalyzed Adv. Weight Redist. System | -7/Factory | Scanalyzed Spear | -7/Factory | Scanalyzed Lrn. Sensor Array | -7/Factory | Scanalyzed Cld. Cesium-ion Thruster | -6/Factory | Hacked Adv. Hacking Suite | -6/Factory | Hacked Impulse Thruster | -6/Factory | Hacked Adv. Signal Interpreter | -6/Factory | Hacked Adv. Sensor Array | -6/Factory | Hacked Gravity Neutralizing Apparatus | -6/Factory | Hacked Imp. Phase Shifter | -6/Factory | Scanalyzed Cld. Deuterium Engine | -6/Factory | Scanalyzed Exp. Utility Shielding | -6/Factory | Hacked Exp. Propulsion Shielding | -6/Factory | Hacked Exp. Sensor Array | -6/Factory | Hacked Imp. Remote Datajack | -5/Factory | Scanalyzed Cld. Nuclear Pulse Thruster | -5/Factory | Hacked Diametric Drive | -5/Factory | Scanalyzed Adv. System Shield | -5/Factory | Scanalyzed Inertial Stasis Machine | -5/Factory | Hacked Exp. Hacking Suite | -4/Factory | Hacked Exp. System Shield | -4/Factory | Hacked Adv. Transmission Jammer | -4/Factory | Hacked Lgt. Neutrino Core | -4/Factory | Hacked Cld. Impulse Thruster | -3/Research | Hacked Cld. Q-thruster | -3/Research | Hacked Quantum Shading Machine | -2/Research | Hacked Imp. Quantum Reactor | -1/Access | Hacked Robot Schematics ------------------ O-24 Administrator | -7/Factory | Hacked Fabricated ------------ Imp. Phase Shifter | x1 | -7/Factory | Preloaded Cld. VTOL Module | x1 | -7/Factory Cld. VTOL Module | x1 | -7/Factory Imp. Hacking Suite | x1 | -7/Factory Imp. Hacking Suite | x1 | -6/Factory Imp. Hacking Suite | x1 | -6/Factory Cld. Cesium-ion Thruster | x1 | -6/Factory Cld. Cesium-ion Thruster | x1 | -6/Factory Cld. Cesium-ion Thruster | x1 | -6/Factory Cld. Cesium-ion Thruster | x1 | -6/Factory Adv. Hacking Suite | x1 | -5/Factory Adv. Hacking Suite | x1 | -5/Factory Exp. Utility Shielding | x1 | -5/Factory Cld. Nuclear Pulse Thruster | x1 | -5/Factory Cld. Nuclear Pulse Thruster | x1 | -5/Factory Cld. Nuclear Pulse Thruster | x1 | -5/Factory Exp. Propulsion Shielding | x1 | -5/Factory Cld. Nuclear Pulse Thruster | x1 | -5/Factory Inertial Stasis Machine | x1 | -5/Factory Exp. Utility Shielding | x1 | -4/Factory Exp. Utility Shielding | x1 | -4/Factory Exp. Hacking Suite | x1 | -4/Factory Cld. Q-thruster | x1 | -3/Research Cld. Q-thruster | x1 | -3/Research Cld. Q-thruster | x1 | -3/Research Cld. Q-thruster | x1 | -2/Research Imp. Quantum Reactor | x1 | -1/Access Cld. Q-thruster | x1 | -1/Access Alien Tech Used ----------------- None Achievements -------------- None Challenges ------------ None Game ------ Seed BeamContainmentMatter Manual? 0 Play Time 06:45:06 Cumulative 684.6 hours Start 2020.03.09 @ 15:27:02 End 2020.03.20 @ 16:43:50 Sessions 7 Manual Loads 0 Difficulty Rogue Special Mode None Game No. 428 Rogue 428 Adventurer 0 Explorer 0 Win Type - Total 105 Types 71/6/8/10/5/1/4 Lore% 97 Gallery% 95 Achievement% 80 Wizard Run 0 Options --------- ASCII 0 Keyboard 0 Movement Numpad Keybinds 0 Fullscreen 2 Font 18/SmallcapsGlow Map View 76x50 Tactical HUD 1 Map Filters NONE Filters NONE Steam 1 RUN: 2b63d45f-b2c4-4847-8186-928a7ee3ff1f